[Event "Titled Tuesday Blitz November 14 Early 2023"]
[White "Bobomurodova, Maftuna"]
[Black "Raahul V S"]
[WhiteFideId "14207400"]
[BlackFideId "25035525"]
[WhiteElo "2333"]
[BlackElo "2664"]
[Result "0-1"]
[Round "4"]
[TimeControl "180+1"]
[Date "2023.11.14"]
[WhiteClock "0:00:00"]
[BlackClock "0:00:04"]
[Board "99"]

1. e4 {[%clk 0:03:00]}  e5 {[%clk 0:02:58]} 2. Nf3 {[%clk 0:03:00]}  Nc6 {[%clk 0:02:58]} 3. Bc4 {[%clk 0:02:55]}  Nf6 {[%clk 0:02:58]} 4. d3 {[%clk 0:02:54]}  h6 {[%clk 0:02:57]} 5. c3 {[%clk 0:02:48]}  d6 {[%clk 0:02:57]} 6. Bb3 {[%clk 0:02:45]}  g6 {[%clk 0:02:56]} 7. Nbd2 {[%clk 0:02:45]}  Bg7 {[%clk 0:02:56]} 8. Nf1 {[%clk 0:02:44]}  O-O {[%clk 0:02:56]} 9. Ng3 {[%clk 0:02:37]}  Kh8 {[%clk 0:02:43]} 10. O-O {[%clk 0:02:32]}  Nh7 {[%clk 0:02:41]} 11. d4 {[%clk 0:02:25]}  Bg4 {[%clk 0:02:38]} 12. d5 {[%clk 0:01:56]}  Ne7 {[%clk 0:02:36]} 13. h3 {[%clk 0:01:56]}  Bd7 {[%clk 0:02:35]} 14. Bc2 {[%clk 0:01:56]}  f5 {[%clk 0:02:26]} 15. exf5 {[%clk 0:01:54]}  Nxf5 {[%clk 0:02:26]} 16. Ne4 {[%clk 0:01:51]}  Nf6 {[%clk 0:02:21]} 17. Nh2 {[%clk 0:01:46]}  Nxe4 {[%clk 0:02:18]} 18. Bxe4 {[%clk 0:01:45]}  Qh4 {[%clk 0:02:17]} 19. Qg4 {[%clk 0:01:42]}  Qxg4 {[%clk 0:02:13]} 20. Nxg4 {[%clk 0:01:42]}  h5 {[%clk 0:02:09]} 21. Ne3 {[%clk 0:01:41]}  Bh6 {[%clk 0:01:46]} 22. Bd2 {[%clk 0:01:29]}  Bxe3 {[%clk 0:01:40]} 23. Bxe3 {[%clk 0:01:23]}  Nxe3 {[%clk 0:01:38]} 24. fxe3 {[%clk 0:01:23]}  Kg7 {[%clk 0:01:39]} 25. Rxf8 {[%clk 0:01:08]}  Rxf8 {[%clk 0:01:39]} 26. Rf1 {[%clk 0:01:07]}  Bf5 {[%clk 0:01:38]} 27. Bxf5 {[%clk 0:01:00]}  gxf5 {[%clk 0:01:37]} 28. Kf2 {[%clk 0:00:58]}  Kf6 {[%clk 0:01:36]} 29. g3 {[%clk 0:00:55]}  Kg5 {[%clk 0:01:32]} 30. c4 {[%clk 0:00:42]}  Rf7 {[%clk 0:01:18]} 31. b3 {[%clk 0:00:40]}  h4 {[%clk 0:01:15]} 32. Rg1 {[%clk 0:00:39]}  hxg3+ {[%clk 0:01:09]} 33. Rxg3+ {[%clk 0:00:38]}  Kf6 {[%clk 0:01:08]} 34. Kf3 {[%clk 0:00:35]}  Rh7 {[%clk 0:01:08]} 35. a3 {[%clk 0:00:25]}  Rh4 {[%clk 0:01:03]} 36. Kf2 {[%clk 0:00:24]}  f4 {[%clk 0:00:51]} 37. exf4 {[%clk 0:00:20]}  exf4 {[%clk 0:00:52]} 38. Rg4 {[%clk 0:00:12]}  Rxh3 {[%clk 0:00:37]} 39. Rxf4+ {[%clk 0:00:11]}  Ke5 {[%clk 0:00:37]} 40. Rf7 {[%clk 0:00:11]}  Rxb3 {[%clk 0:00:37]} 41. Rxc7 {[%clk 0:00:12]}  a5 {[%clk 0:00:29]} 42. a4 {[%clk 0:00:11]}  Kd4 {[%clk 0:00:23]} 43. c5 {[%clk 0:00:09]}  Kxd5 {[%clk 0:00:21]} 44. cxd6 {[%clk 0:00:08]}  Kxd6 {[%clk 0:00:22]} 45. Rh7 {[%clk 0:00:06]}  Rb4 {[%clk 0:00:19]} 46. Ke3 {[%clk 0:00:06]}  Kc6 {[%clk 0:00:19]} 47. Rh6+ {[%clk 0:00:05]}  Kc7 {[%clk 0:00:19]} 48. Rh5 {[%clk 0:00:05]}  Kb6 {[%clk 0:00:19]} 49. Kd3 {[%clk 0:00:06]}  Rxa4 {[%clk 0:00:19]} 50. Rh6+ {[%clk 0:00:06]}  Kb5 {[%clk 0:00:17]} 51. Rh5+ {[%clk 0:00:06]}  Ka6 {[%clk 0:00:17]} 52. Kc3 {[%clk 0:00:06]}  Rb4 {[%clk 0:00:16]} 53. Rg5 {[%clk 0:00:04]}  Rb1 {[%clk 0:00:16]} 54. Kc2 {[%clk 0:00:04]}  Rb5 {[%clk 0:00:16]} 55. Rg6+ {[%clk 0:00:03]}  Rb6 {[%clk 0:00:16]} 56. Rg5 {[%clk 0:00:03]}  Rh6 {[%clk 0:00:14]} 57. Rg8 {[%clk 0:00:02]}  Rh4 {[%clk 0:00:09]} 58. Rg6+ {[%clk 0:00:02]}  Kb5 {[%clk 0:00:08]} 59. Rg7 {[%clk 0:00:02]}  b6 {[%clk 0:00:08]} 60. Kb3 {[%clk 0:00:03]}  a4+ {[%clk 0:00:08]} 61. Ka2 {[%clk 0:00:03]}  Kb4 {[%clk 0:00:07]} 62. Rg3 {[%clk 0:00:03]}  b5 {[%clk 0:00:06]} 63. Kb1 {[%clk 0:00:03]}  a3 {[%clk 0:00:06]} 64. Rf3 {[%clk 0:00:03]}  Ka4 {[%clk 0:00:05]} 65. Rg3 {[%clk 0:00:03]}  b4 {[%clk 0:00:05]} 66. Rf3 {[%clk 0:00:02]}  Rh1+ {[%clk 0:00:05]} 67. Ka2 {[%clk 0:00:00]}  b3+ {[%clk 0:00:04]} 0-1


[Site "https://www.chess.com"]

[Event "Titled Tuesday Blitz November 14 Early 2023"]
[White "Kraus, Tomas"]
[Black "Ovetchkin, Roman"]
[WhiteFideId "331708"]
[BlackFideId "4119991"]
[WhiteElo "2327"]
[BlackElo "2663"]
[Result "0-1"]
[Round "4"]
[TimeControl "180+1"]
[Date "2023.11.14"]
[WhiteClock "0:00:00"]
[BlackClock "0:00:24"]
[Board "100"]

1. e4 {[%clk 0:02:59]}  c6 {[%clk 0:02:59]} 2. d4 {[%clk 0:02:59]}  d5 {[%clk 0:03:00]} 3. f3 {[%clk 0:03:00]}  Qb6 {[%clk 0:02:57]} 4. Nc3 {[%clk 0:02:57]}  e6 {[%clk 0:02:53]} 5. e5 {[%clk 0:02:24]}  c5 {[%clk 0:02:51]} 6. Bb5+ {[%clk 0:02:23]}  Bd7 {[%clk 0:02:41]} 7. Bxd7+ {[%clk 0:02:20]}  Nxd7 {[%clk 0:02:40]} 8. dxc5 {[%clk 0:02:08]}  Bxc5 {[%clk 0:02:37]} 9. Na4 {[%clk 0:02:00]}  Qa5+ {[%clk 0:02:36]} 10. c3 {[%clk 0:01:57]}  Bxg1 {[%clk 0:02:34]} 11. Rxg1 {[%clk 0:01:54]}  b5 {[%clk 0:02:08]} 12. Nc5 {[%clk 0:01:41]}  Nxc5 {[%clk 0:02:08]} 13. b4 {[%clk 0:01:41]}  Qc7 {[%clk 0:02:08]} 14. bxc5 {[%clk 0:01:41]}  Qxe5+ {[%clk 0:01:38]} 15. Kf1 {[%clk 0:01:41]}  Ne7 {[%clk 0:01:37]} 16. Qd4 {[%clk 0:01:26]}  Nc6 {[%clk 0:01:33]} 17. Qxe5 {[%clk 0:01:23]}  Nxe5 {[%clk 0:01:34]} 18. Bf4 {[%clk 0:01:22]}  Nc6 {[%clk 0:01:28]} 19. Rb1 {[%clk 0:01:21]}  a6 {[%clk 0:01:26]} 20. Kf2 {[%clk 0:01:20]}  Kd7 {[%clk 0:01:23]} 21. Rb2 {[%clk 0:01:14]}  e5 {[%clk 0:01:23]} 22. Bd2 {[%clk 0:01:13]}  Na5 {[%clk 0:01:20]} 23. Rc2 {[%clk 0:01:01]}  Kc6 {[%clk 0:01:18]} 24. Rb1 {[%clk 0:00:50]}  Nc4 {[%clk 0:01:18]} 25. Bc1 {[%clk 0:00:43]}  Kxc5 {[%clk 0:01:15]} 26. a4 {[%clk 0:00:43]}  Rhb8 {[%clk 0:01:11]} 27. f4 {[%clk 0:00:38]}  f6 {[%clk 0:01:06]} 28. g4 {[%clk 0:00:34]}  bxa4 {[%clk 0:01:01]} 29. Ra1 {[%clk 0:00:34]}  Rb3 {[%clk 0:00:58]} 30. Rxa4 {[%clk 0:00:32]}  a5 {[%clk 0:00:58]} 31. g5 {[%clk 0:00:30]}  Kb5 {[%clk 0:00:57]} 32. Raa2 {[%clk 0:00:29]}  a4 {[%clk 0:00:58]} 33. h4 {[%clk 0:00:27]}  a3 {[%clk 0:00:54]} 34. h5 {[%clk 0:00:27]}  h6 {[%clk 0:00:41]} 35. gxh6 {[%clk 0:00:27]}  gxh6 {[%clk 0:00:41]} 36. fxe5 {[%clk 0:00:27]}  fxe5 {[%clk 0:00:40]} 37. Kg3 {[%clk 0:00:19]}  Ra6 {[%clk 0:00:39]} 38. Kg4 {[%clk 0:00:18]}  e4 {[%clk 0:00:38]} 39. Kf5 {[%clk 0:00:17]}  Kc5 {[%clk 0:00:35]} 40. Kf4 {[%clk 0:00:11]}  Rf6+ {[%clk 0:00:32]} 41. Kg4 {[%clk 0:00:10]}  e3 {[%clk 0:00:30]} 42. Kg3 {[%clk 0:00:05]}  d4 {[%clk 0:00:28]} 43. cxd4+ {[%clk 0:00:05]}  Kxd4 {[%clk 0:00:29]} 44. Re2 {[%clk 0:00:02]}  Kd3 {[%clk 0:00:28]} 45. Rec2 {[%clk 0:00:00]}  Rf1 {[%clk 0:00:24]} 0-1


[Site "https://www.chess.com"]

[Event "Titled Tuesday Blitz November 14 Early 2023"]
[White "Yen, William"]
[Black "Osmonbekov, Talaibek"]
[WhiteFideId "30932025"]
[BlackFideId "2017253"]
[WhiteElo "2662"]
[BlackElo "2324"]
[Result "1-0"]
[Round "4"]
[TimeControl "180+1"]
[Date "2023.11.14"]
[WhiteClock "0:01:10"]
[BlackClock "0:00:00"]
[Board "101"]

1. e4 {[%clk 0:03:00]}  c5 {[%clk 0:02:58]} 2. Nf3 {[%clk 0:02:59]}  d6 {[%clk 0:02:58]} 3. d4 {[%clk 0:02:58]}  cxd4 {[%clk 0:02:59]} 4. Nxd4 {[%clk 0:02:59]}  Nf6 {[%clk 0:02:59]} 5. Nc3 {[%clk 0:02:58]}  g6 {[%clk 0:03:00]} 6. Be3 {[%clk 0:02:56]}  Bg7 {[%clk 0:03:00]} 7. Qd2 {[%clk 0:02:56]}  O-O {[%clk 0:02:59]} 8. f3 {[%clk 0:02:56]}  Nc6 {[%clk 0:02:59]} 9. O-O-O {[%clk 0:02:53]}  d5 {[%clk 0:02:58]} 10. exd5 {[%clk 0:02:51]}  Nxd5 {[%clk 0:02:58]} 11. Nxd5 {[%clk 0:02:49]}  Qxd5 {[%clk 0:02:53]} 12. Nxc6 {[%clk 0:02:39]}  Qxc6 {[%clk 0:02:49]} 13. Bh6 {[%clk 0:02:39]}  Bf5 {[%clk 0:02:38]} 14. Bxg7 {[%clk 0:02:37]}  Kxg7 {[%clk 0:02:39]} 15. Bd3 {[%clk 0:02:36]}  Rfd8 {[%clk 0:02:30]} 16. Qe3 {[%clk 0:02:34]}  Rxd3 {[%clk 0:01:51]} 17. Rxd3 {[%clk 0:02:35]}  Bxd3 {[%clk 0:01:44]} 18. Qxd3 {[%clk 0:02:36]}  Rc8 {[%clk 0:01:44]} 19. Re1 {[%clk 0:02:33]}  Rc7 {[%clk 0:01:31]} 20. c3 {[%clk 0:02:24]}  b5 {[%clk 0:01:30]} 21. Kb1 {[%clk 0:02:22]}  a5 {[%clk 0:01:29]} 22. h4 {[%clk 0:02:16]}  f6 {[%clk 0:01:14]} 23. h5 {[%clk 0:02:14]}  b4 {[%clk 0:01:04]} 24. cxb4 {[%clk 0:02:11]}  axb4 {[%clk 0:01:03]} 25. hxg6 {[%clk 0:02:12]}  hxg6 {[%clk 0:01:03]} 26. Qd2 {[%clk 0:02:07]}  Qc5 {[%clk 0:00:51]} 27. Rc1 {[%clk 0:02:02]}  Qf5+ {[%clk 0:00:49]} 28. Rc2 {[%clk 0:01:58]}  g5 {[%clk 0:00:43]} 29. Kc1 {[%clk 0:01:58]}  Ra7 {[%clk 0:00:24]} 30. Qxb4 {[%clk 0:01:51]}  Qe5 {[%clk 0:00:19]} 31. a3 {[%clk 0:01:48]}  Qe3+ {[%clk 0:00:18]} 32. Qd2 {[%clk 0:01:42]}  Qg1+ {[%clk 0:00:17]} 33. Qd1 {[%clk 0:01:42]}  Qe3+ {[%clk 0:00:17]} 34. Kb1 {[%clk 0:01:41]}  Qb3 {[%clk 0:00:15]} 35. Qe2 {[%clk 0:01:32]}  Kg6 {[%clk 0:00:11]} 36. Rc3 {[%clk 0:01:30]}  Qb6 {[%clk 0:00:09]} 37. Qe3 {[%clk 0:01:28]}  Qb7 {[%clk 0:00:08]} 38. Qd3+ {[%clk 0:01:23]}  Kg7 {[%clk 0:00:07]} 39. g4 {[%clk 0:01:24]}  Ra6 {[%clk 0:00:05]} 40. Rb3 {[%clk 0:01:21]}  Qc8 {[%clk 0:00:04]} 41. Ka2 {[%clk 0:01:21]}  Rc6 {[%clk 0:00:04]} 42. Qe4 {[%clk 0:01:15]}  Kf8 {[%clk 0:00:03]} 43. Rb8 {[%clk 0:01:09]}  Qxb8 {[%clk 0:00:00]} 44. Qxc6 {[%clk 0:01:10]} 1-0


[Site "https://www.chess.com"]

[Event "Titled Tuesday Blitz November 14 Early 2023"]
[White "Liu, Leonardo"]
[Black "Makhnev, Denis"]
[WhiteFideId "30965780"]
[BlackFideId "13707647"]
[WhiteElo "2268"]
[BlackElo "2652"]
[Result "0-1"]
[Round "4"]
[TimeControl "180+1"]
[Date "2023.11.14"]
[WhiteClock "0:02:08"]
[BlackClock "0:01:24"]
[Board "103"]

1. e4 {[%clk 0:03:00]}  c6 {[%clk 0:02:59]} 2. Nc3 {[%clk 0:03:00]}  d5 {[%clk 0:03:00]} 3. Nf3 {[%clk 0:03:01]}  Bg4 {[%clk 0:02:59]} 4. h3 {[%clk 0:03:01]}  Bh5 {[%clk 0:02:59]} 5. g3 {[%clk 0:02:57]}  dxe4 {[%clk 0:02:56]} 6. Nxe4 {[%clk 0:02:57]}  Nd7 {[%clk 0:02:53]} 7. Bg2 {[%clk 0:02:57]}  Ngf6 {[%clk 0:02:53]} 8. Nxf6+ {[%clk 0:02:55]}  Nxf6 {[%clk 0:02:52]} 9. O-O {[%clk 0:02:56]}  e6 {[%clk 0:02:52]} 10. d4 {[%clk 0:02:56]}  Be7 {[%clk 0:02:51]} 11. c4 {[%clk 0:02:56]}  O-O {[%clk 0:02:51]} 12. b3 {[%clk 0:02:56]}  Qa5 {[%clk 0:02:43]} 13. Bb2 {[%clk 0:02:54]}  Ba3 {[%clk 0:02:39]} 14. Qc2 {[%clk 0:02:51]}  Bxb2 {[%clk 0:02:37]} 15. Qxb2 {[%clk 0:02:51]}  Bxf3 {[%clk 0:02:36]} 16. Bxf3 {[%clk 0:02:51]}  Rfd8 {[%clk 0:02:35]} 17. Rad1 {[%clk 0:02:49]}  Rd7 {[%clk 0:02:36]} 18. Rfe1 {[%clk 0:02:42]}  Rad8 {[%clk 0:02:34]} 19. Re5 {[%clk 0:02:43]}  Qc7 {[%clk 0:02:29]} 20. d5 {[%clk 0:02:43]}  cxd5 {[%clk 0:02:24]} 21. cxd5 {[%clk 0:02:44]}  Nxd5 {[%clk 0:02:17]} 22. Bxd5 {[%clk 0:02:42]}  Rxd5 {[%clk 0:02:17]} 23. Rdxd5 {[%clk 0:02:38]}  exd5 {[%clk 0:02:07]} 24. Qd4 {[%clk 0:02:36]}  Qd6 {[%clk 0:01:53]} 25. f4 {[%clk 0:02:28]}  a6 {[%clk 0:01:52]} 26. Kf2 {[%clk 0:02:23]}  h6 {[%clk 0:01:51]} 27. Qa7 {[%clk 0:02:17]}  Qc6 {[%clk 0:01:50]} 28. Qd4 {[%clk 0:02:15]}  Qc2+ {[%clk 0:01:43]} 29. Re2 {[%clk 0:02:14]}  Qc8 {[%clk 0:01:32]} 30. Qb6 {[%clk 0:02:10]}  d4 {[%clk 0:01:27]} 31. Rc2 {[%clk 0:02:08]}  Qxc2+ {[%clk 0:01:24]} 0-1


[Site "https://www.chess.com"]

[Event "Titled Tuesday Blitz November 14 Early 2023"]
[White "BardArtem"]
[Black "Skibbe, Willi"]
[BlackFideId "4682190"]
[WhiteElo "2834"]
[BlackElo "2250"]
[Result "1-0"]
[Round "4"]
[TimeControl "180+1"]
[Date "2023.11.14"]
[WhiteClock "0:00:02"]
[BlackClock "0:00:00"]
[Board "106"]

1. e4 {[%clk 0:03:00]}  e6 {[%clk 0:02:57]} 2. d4 {[%clk 0:03:01]}  d5 {[%clk 0:02:56]} 3. Nc3 {[%clk 0:03:01]}  Nf6 {[%clk 0:02:55]} 4. exd5 {[%clk 0:03:01]}  exd5 {[%clk 0:02:54]} 5. Bg5 {[%clk 0:03:00]}  Bf5 {[%clk 0:02:50]} 6. Bxf6 {[%clk 0:02:53]}  gxf6 {[%clk 0:02:50]} 7. Bd3 {[%clk 0:02:52]}  Bg6 {[%clk 0:02:46]} 8. h4 {[%clk 0:02:51]}  h5 {[%clk 0:02:38]} 9. Bxg6 {[%clk 0:02:50]}  fxg6 {[%clk 0:02:36]} 10. Nge2 {[%clk 0:02:48]}  c6 {[%clk 0:02:35]} 11. Qd3 {[%clk 0:02:47]}  Kf7 {[%clk 0:02:33]} 12. O-O-O {[%clk 0:02:45]}  Nd7 {[%clk 0:02:32]} 13. f3 {[%clk 0:02:42]}  Bh6+ {[%clk 0:02:26]} 14. Kb1 {[%clk 0:02:42]}  Re8 {[%clk 0:02:25]} 15. g4 {[%clk 0:02:41]}  Re3 {[%clk 0:02:04]} 16. Qd2 {[%clk 0:02:41]}  Qe7 {[%clk 0:02:04]} 17. gxh5 {[%clk 0:02:28]}  gxh5 {[%clk 0:02:05]} 18. Ng3 {[%clk 0:02:26]}  Qe6 {[%clk 0:01:51]} 19. Nxh5 {[%clk 0:01:35]}  Nb6 {[%clk 0:01:46]} 20. Rhg1 {[%clk 0:01:23]}  Nc4 {[%clk 0:01:29]} 21. Qg2 {[%clk 0:01:21]}  Qf5 {[%clk 0:01:29]} 22. Qg4 {[%clk 0:01:04]}  Rxf3 {[%clk 0:01:20]} 23. Qxf5 {[%clk 0:01:04]}  Rxf5 {[%clk 0:01:20]} 24. Ng3 {[%clk 0:01:02]}  Rf4 {[%clk 0:01:17]} 25. b3 {[%clk 0:00:50]}  Nd6 {[%clk 0:01:09]} 26. Rgf1 {[%clk 0:00:48]}  Rxh4 {[%clk 0:01:00]} 27. Rh1 {[%clk 0:00:43]}  Bg5 {[%clk 0:00:51]} 28. Rxh4 {[%clk 0:00:25]}  Bxh4 {[%clk 0:00:51]} 29. Nge2 {[%clk 0:00:26]}  Bg5 {[%clk 0:00:47]} 30. Rh1 {[%clk 0:00:25]}  Kg7 {[%clk 0:00:47]} 31. Ng3 {[%clk 0:00:26]}  Re8 {[%clk 0:00:45]} 32. Rg1 {[%clk 0:00:04]}  Re3 {[%clk 0:00:37]} 33. Nce2 {[%clk 0:00:05]}  Kf7 {[%clk 0:00:28]} 34. Rh1 {[%clk 0:00:05]}  Ne4 {[%clk 0:00:24]} 35. Nxe4 {[%clk 0:00:04]}  Rxe4 {[%clk 0:00:23]} 36. Ng3 {[%clk 0:00:05]}  Rg4 {[%clk 0:00:20]} 37. Nf5 {[%clk 0:00:05]}  Kg6 {[%clk 0:00:18]} 38. Nd6 {[%clk 0:00:03]}  Rxd4 {[%clk 0:00:14]} 39. Nxb7 {[%clk 0:00:04]}  f5 {[%clk 0:00:13]} 40. Na5 {[%clk 0:00:03]}  c5 {[%clk 0:00:12]} 41. Nc6 {[%clk 0:00:03]}  Re4 {[%clk 0:00:11]} 42. Rd1 {[%clk 0:00:03]}  d4 {[%clk 0:00:11]} 43. Nxa7 {[%clk 0:00:04]}  f4 {[%clk 0:00:12]} 44. Nc6 {[%clk 0:00:02]}  f3 {[%clk 0:00:11]} 45. Rf1 {[%clk 0:00:03]}  f2 {[%clk 0:00:05]} 46. Kb2 {[%clk 0:00:02]}  Re1 {[%clk 0:00:04]} 47. Ne5+ {[%clk 0:00:02]}  Kf5 {[%clk 0:00:01]} 48. Rxf2+ {[%clk 0:00:01]}  Kxe5 {[%clk 0:00:02]} 49. a4 {[%clk 0:00:01]}  Bc1+ {[%clk 0:00:00]} 50. Ka2 {[%clk 0:00:02]} 1-0


[Site "https://www.chess.com"]

[Event "Titled Tuesday Blitz November 14 Early 2023"]
[White "Timofeev, Artyom"]
[Black "Silva Lucena, Cristian"]
[WhiteFideId "4140419"]
[BlackFideId "2232588"]
[WhiteElo "2827"]
[BlackElo "2544"]
[Result "1-0"]
[Round "4"]
[TimeControl "180+1"]
[Date "2023.11.14"]
[WhiteClock "0:01:57"]
[BlackClock "0:00:41"]
[Board "107"]

1. c4 {[%clk 0:03:00]}  Nf6 {[%clk 0:02:59]} 2. Nc3 {[%clk 0:03:00]}  g6 {[%clk 0:02:59]} 3. d4 {[%clk 0:02:58]}  Bg7 {[%clk 0:02:59]} 4. e4 {[%clk 0:02:57]}  d6 {[%clk 0:03:00]} 5. h4 {[%clk 0:02:56]}  c5 {[%clk 0:02:48]} 6. d5 {[%clk 0:02:52]}  e6 {[%clk 0:02:48]} 7. h5 {[%clk 0:02:47]}  Nxh5 {[%clk 0:02:48]} 8. Rxh5 {[%clk 0:02:47]}  gxh5 {[%clk 0:02:48]} 9. Qxh5 {[%clk 0:02:47]}  Bxc3+ {[%clk 0:02:38]} 10. bxc3 {[%clk 0:02:46]}  Qa5 {[%clk 0:02:38]} 11. Bd2 {[%clk 0:02:42]}  e5 {[%clk 0:02:27]} 12. Nf3 {[%clk 0:02:37]}  Na6 {[%clk 0:02:02]} 13. Nxe5 {[%clk 0:02:35]}  Qc7 {[%clk 0:01:53]} 14. Nf3 {[%clk 0:02:25]}  Bd7 {[%clk 0:01:52]} 15. Bg5 {[%clk 0:02:20]}  Ba4 {[%clk 0:01:38]} 16. Bf6 {[%clk 0:02:17]}  Rf8 {[%clk 0:01:35]} 17. Bd3 {[%clk 0:02:13]}  Qb6 {[%clk 0:01:11]} 18. Rb1 {[%clk 0:02:11]}  Qc7 {[%clk 0:01:08]} 19. Ng5 {[%clk 0:02:08]}  Qd7 {[%clk 0:01:00]} 20. Ne6 {[%clk 0:01:58]}  Rg8 {[%clk 0:00:41]} 21. Qxh7 {[%clk 0:01:57]} 1-0


[Site "https://www.chess.com"]

[Event "Titled Tuesday Blitz November 14 Early 2023"]
[White "Kopylov, Alexander A."]
[Black "Herman, Matthew"]
[WhiteFideId "4164857"]
[BlackFideId "2028964"]
[WhiteElo "2792"]
[BlackElo "2527"]
[Result "1-0"]
[Round "4"]
[TimeControl "180+1"]
[Date "2023.11.14"]
[WhiteClock "0:00:52"]
[BlackClock "0:00:00"]
[Board "109"]

1. d4 {[%clk 0:03:00]}  Nf6 {[%clk 0:02:59]} 2. Nf3 {[%clk 0:03:01]}  g6 {[%clk 0:02:59]} 3. g3 {[%clk 0:03:02]}  Bg7 {[%clk 0:02:59]} 4. Bg2 {[%clk 0:03:03]}  O-O {[%clk 0:03:00]} 5. O-O {[%clk 0:03:03]}  d6 {[%clk 0:03:01]} 6. a4 {[%clk 0:03:04]}  a5 {[%clk 0:03:00]} 7. Nc3 {[%clk 0:03:04]}  Nbd7 {[%clk 0:02:56]} 8. e4 {[%clk 0:03:04]}  e5 {[%clk 0:02:56]} 9. h3 {[%clk 0:03:05]}  b6 {[%clk 0:02:56]} 10. Be3 {[%clk 0:03:05]}  Ba6 {[%clk 0:02:40]} 11. Re1 {[%clk 0:03:05]}  Re8 {[%clk 0:02:39]} 12. Qd2 {[%clk 0:03:03]}  Qe7 {[%clk 0:01:59]} 13. Rad1 {[%clk 0:02:59]}  Qf8 {[%clk 0:01:51]} 14. b3 {[%clk 0:02:57]}  Rad8 {[%clk 0:01:45]} 15. Bg5 {[%clk 0:02:49]}  h6 {[%clk 0:01:36]} 16. Be3 {[%clk 0:02:48]}  exd4 {[%clk 0:01:14]} 17. Nxd4 {[%clk 0:02:48]}  Nc5 {[%clk 0:01:14]} 18. f3 {[%clk 0:02:25]}  Bb7 {[%clk 0:00:36]} 19. Ncb5 {[%clk 0:02:17]}  Rd7 {[%clk 0:00:17]} 20. Bf2 {[%clk 0:02:14]}  Rde7 {[%clk 0:00:13]} 21. g4 {[%clk 0:02:00]}  d5 {[%clk 0:00:13]} 22. e5 {[%clk 0:02:00]}  Rxe5 {[%clk 0:00:13]} 23. Nxc7 {[%clk 0:01:56]}  Rxe1+ {[%clk 0:00:13]} 24. Rxe1 {[%clk 0:01:57]}  Rxe1+ {[%clk 0:00:13]} 25. Qxe1 {[%clk 0:01:57]}  Nfd7 {[%clk 0:00:09]} 26. Ncb5 {[%clk 0:01:53]}  Ba6 {[%clk 0:00:05]} 27. Bg3 {[%clk 0:01:49]}  Bxb5 {[%clk 0:00:05]} 28. Nxb5 {[%clk 0:01:50]}  Qd8 {[%clk 0:00:03]} 29. Bd6 {[%clk 0:01:35]}  Qf6 {[%clk 0:00:03]} 30. f4 {[%clk 0:01:31]}  Qb2 {[%clk 0:00:03]} 31. Qe8+ {[%clk 0:01:23]}  Kh7 {[%clk 0:00:02]} 32. Qxf7 {[%clk 0:01:23]}  Qxc2 {[%clk 0:00:02]} 33. f5 {[%clk 0:01:15]}  gxf5 {[%clk 0:00:01]} 34. gxf5 {[%clk 0:01:15]}  Nf6 {[%clk 0:00:01]} 35. Nc7 {[%clk 0:01:01]}  Qxf5 {[%clk 0:00:00]} 36. Nxd5 {[%clk 0:00:52]} 1-0


[Site "https://www.chess.com"]